bitfinex/quotes_ETHUSD_20260207
["timestamp","ask_amount","ask_price","bid_price","bid_amount"]
[1770481405864,0.002,2054.5,2053.4,1.24189746]
[1770481406061,1.946,2054.7,2053.7,0.02440453]
[1770481406480,0.002,2056.0,2054.0,0.02440453]
[1770481406854,0.002,2056.0,2054.3,0.02440453]
[1770481407088,0.002,2056.0,2054.6,0.02440453]
[1770481407686,0.002,2056.0,2054.9,0.02440453]
[1770481407882,0.002,2056.0,2054.8,0.2335703]
[1770481408386,0.002,2056.0,2054.7,1.21672263]
[1770481408612,0.002,2056.0,2054.9,0.02440453]
[1770481409186,0.002,2056.0,2055.2,0.02440453]
[1770481409577,0.002,2056.0,2055.3,0.02440453]
[1770481409891,0.002,2056.2,2055.3,0.02440453]
[1770481410600,0.002,2056.5,2055.9,0.02440453]
[1770481410891,0.002,2057.6,2056.2,0.02440453]
[1770481411094,0.002,2057.6,2055.7,0.02440453]
[1770481411266,0.002,2057.6,2055.3,0.02440453]
[1770481411598,0.002,2057.6,2055.1,0.02440453]
[1770481411599,0.02440453,2057.3,2055.1,0.02440453]
[1770481411760,0.02440453,2057.3,2055.1,0.25797483]
[1770481412093,1.21524402,2057.2,2054.9,1.21660421]
[1770481412278,0.002,2057.4,2055.4,0.02440453]
[1770481412485,1.21518495,2057.3,2055.1,0.02440453]
[1770481413297,0.02440453,2057.1,2054.9,1.21660421]
[1770481413597,1.21536217,2057.0,2054.8,0.02440453]
[1770481414105,1.2397667,2057.0,2054.8,0.02440453]
[1770481414392,0.6,2057.1,2055.0,1.21649575]
[1770481414576,0.6,2057.1,2055.2,0.02440453]
[1770481414767,0.6,2057.1,2055.2,1.24083115]
[1770481415263,1.81533819,2057.1,2054.9,0.25797483]
[1770481415587,1.21542126,2056.9,2054.6,1.24117402]
[1770481415785,1.21542126,2056.9,2054.3,0.02440453]
[1770481415786,0.02440453,2056.7,2054.3,1.21691026]
[1770481415961,0.02440453,2056.7,2054.6,1.21674108]
[1770481416162,1.81530403,2057.1,2054.8,0.02440453]
[1770481416366,1.81530403,2057.1,2054.9,1.21657347]
[1770481416367,0.47076415,2057.0,2054.9,1.21657347]
[1770481416666,0.02440453,2057.0,2054.9,1.21657347]
[1770481417058,0.02440453,2057.0,2055.1,0.02440453]
[1770481417264,0.6,2057.1,2055.1,0.02440453]
[1770481417860,0.6,2057.1,2054.9,1.21657347]
[1770481418195,0.6,2057.1,2055.2,0.02440453]
[1770481418394,0.02440453,2056.9,2054.9,0.02440453]
[1770481418762,0.44723254,2056.8,2054.3,0.02440453]
[1770481418963,0.02440453,2056.6,2054.6,0.02440453]
[1770481419377,0.02440453,2056.8,2054.6,0.02440453]
[1770481419580,0.44751426,2056.7,2054.6,0.02440453]
[1770481419776,0.02440453,2056.8,2054.9,0.02440453]
[1770481420006,0.6,2057.1,2055.2,0.02440453]
[1770481420306,0.6,2057.1,2055.5,0.02440453]
[1770481420680,0.6,2057.1,2055.8,0.02440453]
[1770481420888,0.002,2057.4,2056.1,0.02440453]
[1770481421414,0.002,2057.4,2056.5,0.02440453]
[1770481421718,0.002,2057.4,2055.6,0.02440453]
[1770481421873,0.002,2056.7,2055.9,0.02440453]
[1770481422797,0.002,2056.7,2056.0,0.02440453]
[1770481423000,0.002,2056.7,2055.7,0.02440453]
[1770481423298,0.002,2056.7,2056.2,0.02440453]
[1770481423691,0.002,2056.7,2056.5,0.02440453]
[1770481424206,0.002,2057.4,2056.5,0.02440453]
[1770481424411,0.002,2057.4,2056.8,0.02440453]
[1770481424577,0.002,2057.4,2056.5,0.02440453]
[1770481425604,0.002,2057.4,2056.8,0.02440453]
[1770481426174,0.002,2057.4,2056.2,0.02440453]
[1770481426374,0.002,2057.4,2056.5,0.02440453]
[1770481426800,0.002,2057.4,2056.8,0.02440453]
[1770481427001,0.002,2057.4,2056.5,0.02440453]
[1770481427576,0.002,2057.4,2056.8,0.02440453]
[1770481427791,0.002,2057.4,2056.5,0.02440453]
[1770481428081,0.002,2057.4,2056.1,0.02440453]
[1770481428296,0.002,2057.4,2054.7,4.86677879]
[1770481428297,0.002,2057.4,2055.9,0.02440453]
[1770481428806,0.002,2057.4,2056.2,0.02440453]
[1770481429677,0.002,2057.4,2056.4,0.02440453]
[1770481430100,0.002,2057.4,2056.7,0.02440453]
[1770481430307,1.23885679,2058.6,2056.4,0.02440453]
[1770481430308,0.2528589,2059.1,2057.3,0.02440453]
[1770481430486,0.002,2060.7,2057.8,2.481665]
[1770481430684,0.2568589,2060.6,2059.0,0.02440453]
[1770481430909,1.47009776,2060.6,2058.7,0.25256115]
[1770481431210,0.02440453,2060.3,2058.8,0.44587091]
[1770481431384,1.23764339,2060.6,2058.8,0.25255822]
[1770481431385,0.02440453,2059.8,2058.8,0.25255822]
[1770481431711,0.02440453,2060.9,2058.8,0.25255822]
[1770481431712,0.02440453,2060.5,2058.8,0.25255822]
[1770481431908,0.002,2061.2,2059.1,0.2335703]
[1770481432077,0.02440453,2060.9,2058.8,0.25255822]
[1770481432282,0.02640453,2061.2,2059.1,0.2335703]
[1770481432677,0.002,2061.2,2059.3,0.2335703]
[1770481433080,0.002,2061.2,2059.8,0.02440453]
[1770481433318,0.02440453,2062.9,2060.5,0.02440453]
[1770481433613,0.02440453,2062.9,2060.3,4.508687]
[1770481433614,0.02440453,2062.8,2060.6,0.02440453]
[1770481433811,0.02440453,2062.2,2060.4,0.48412852]
[1770481433997,0.002,2060.6,2060.4,0.48412852]
[1770481434179,0.002,2061.5,2060.6,0.2335703]
[1770481434496,0.002,2061.5,2060.8,0.25797483]
[1770481434691,1.21192494,2062.9,2060.8,0.02440453]
[1770481434894,1.21192494,2062.9,2061.0,0.2335703]
[1770481435082,0.02440453,2062.8,2060.9,0.24855822]
[1770481435290,0.02440453,2062.5,2060.9,0.24855822]
[1770481435595,0.02440453,2062.4,2060.9,0.24855822]
[1770481435808,0.02440453,2062.1,2060.0,1.21356556]
[1770481436117,0.02440453,2062.3,2060.2,0.25797483]
[1770481436317,0.02440453,2062.0,2060.1,0.24855822]
[1770481436483,0.02440453,2062.2,2060.1,0.24855822]
[1770481436892,0.02440453,2061.9,2060.1,0.24855822]
[1770481437091,0.02440453,2061.5,2060.1,0.24855822]
[1770481437292,0.02440453,2061.8,2060.1,0.24855822]
[1770481437502,0.02440453,2061.7,2060.1,0.24855822]
[1770481437705,0.02440453,2061.4,2060.1,0.24855822]
[1770481437885,0.02440453,2061.7,2060.1,0.24855822]
[1770481437886,0.45040344,2061.6,2060.1,0.24855822]
[1770481438092,0.02440453,2061.3,2060.1,0.24855822]
[1770481438293,0.02440453,2061.0,2058.9,1.23861114]
[1770481438516,0.02440453,2061.0,2059.0,0.24855822]
[1770481438718,0.02440453,2060.9,2059.0,0.24855822]
[1770481438881,0.02440453,2061.3,2059.0,0.27296275]
[1770481439078,0.02440453,2061.4,2059.3,0.02440453]
[1770481439410,0.02440453,2061.5,2059.4,0.2335703]
[1770481439716,0.02440453,2061.5,2059.4,1.48688645]
[1770481440026,0.02440453,2061.4,2059.4,1.46248192]
[1770481440308,0.02440453,2061.4,2059.5,0.2335703]
[1770481440504,0.02440453,2061.7,2059.5,0.25797483]
[1770481440710,1.21265036,2061.6,2059.6,0.24855822]
[1770481441205,0.63311448,2061.7,2059.7,0.2335703]
[1770481441206,0.60870995,2061.7,2059.7,0.2335703]
[1770481441397,1.2124641,2062.0,2059.8,0.02440453]
[1770481441606,0.02440453,2062.1,2059.9,0.2335703]
[1770481441819,0.02440453,2061.5,2059.8,0.24855822]
[1770481442111,0.02440453,2061.3,2059.9,0.24855822]
[1770481442310,1.21274679,2061.5,2059.2,1.21403399]
[1770481442510,0.60879881,2061.4,2059.3,0.02440453]
[1770481442682,0.60879881,2061.4,2059.3,0.27296275]
[1770481442882,1.21274236,2061.5,2059.3,0.27296275]
[1770481443081,0.02440453,2061.4,2059.3,0.27296275]
[1770481443306,0.02440453,2061.1,2059.3,0.24855822]
[1770481444024,0.02440453,2060.8,2059.3,0.24855822]
[1770481444205,1.23752719,2060.8,2059.3,0.24855822]
[1770481445331,0.02440453,2060.5,2059.3,0.24855822]
[1770481445780,0.02440453,2060.2,2058.9,0.001]
[1770481445984,0.02440453,2060.2,2059.0,0.24855822]
[1770481446186,0.02440453,2059.9,2059.0,0.24855822]
[1770481446992,1.21371006,2059.8,2059.0,0.24855822]
[1770481447313,4.87834474,2060.2,2059.0,0.24855822]
[1770481447314,1.21360791,2060.0,2059.0,0.24855822]
[1770481447515,0.60919527,2060.0,2059.0,0.24855822]
[1770481447824,2.76997587,2060.4,2059.0,0.24855822]
[1770481448894,2.76997587,2060.4,2058.9,0.001]
[1770481448895,2.76997587,2060.4,2059.1,0.24855822]
[1770481450218,2.76997587,2060.4,2058.9,0.001]
[1770481450404,2.76997587,2060.4,2059.0,0.24855822]
[1770481450609,0.27699759,2060.3,2059.0,0.24855822]
[1770481451729,0.27699759,2060.3,2059.1,0.02440453]
[1770481451894,0.27699759,2060.3,2059.2,0.24855822]
[1770481453805,1.49045259,2060.3,2059.2,0.24855822]
[1770481454325,1.51485712,2060.3,2059.2,0.24855822]
[1770481454629,0.4284833,2060.2,2059.2,0.24855822]
[1770481454925,1.21353332,2060.1,2058.9,0.001]
[1770481456026,0.02440453,2060.0,2058.9,0.001]
[1770481456337,1.21353332,2060.1,2058.9,0.001]
[1770481456622,5.28261659,2060.2,2058.6,0.001]
[1770481456623,1.21400475,2059.3,2058.6,0.001]
[1770481456826,1.21400475,2059.3,2057.1,0.02440453]
[1770481457195,0.02440453,2059.0,2057.1,0.02440453]
[1770481457398,0.44824232,2058.9,2056.6,1.23999884]
[1770481457605,0.44824232,2058.8,2056.7,0.02440453]
[1770481457924,0.44824232,2058.7,2056.7,0.02440453]
[1770481458125,0.44824232,2058.6,2056.6,0.02440453]
[1770481458331,0.44824232,2058.5,2056.5,12.35174578]
[1770481458514,0.44824232,2058.4,2056.5,12.35174578]
[1770481458716,1.21435857,2058.7,2056.6,0.02440453]
[1770481459027,0.60943128,2059.2,2057.2,0.02440453]
[1770481459325,0.44854324,2059.1,2058.0,0.001]
[1770481459525,0.44854324,2059.0,2058.0,0.001]
[1770481459705,0.44854324,2058.9,2058.0,0.001]
[1770481459910,0.47294777,2058.8,2056.9,0.001]
[1770481460228,0.44854324,2058.7,2056.9,0.001]
[1770481460525,0.44854324,2058.6,2056.9,0.001]
[1770481460831,0.44854324,2058.5,2056.9,0.001]
[1770481461031,0.44854324,2058.4,2056.9,0.001]
[1770481461227,0.44854324,2058.3,2056.9,0.001]
[1770481461418,0.57618191,2059.1,2057.0,0.02440453]
[1770481461734,0.47383125,2059.0,2057.0,0.02440453]
[1770481461905,0.44942672,2058.9,2057.3,0.02440453]
[1770481462097,0.44942672,2058.8,2056.9,0.001]
[1770481462300,0.44942672,2058.7,2057.0,0.02440453]
[1770481462511,0.44942672,2058.6,2057.0,0.02440453]
[1770481462810,0.02440453,2059.4,2057.0,0.02440453]
[1770481463006,0.02440453,2059.1,2057.0,0.02440453]
[1770481463202,0.4491321,2059.0,2057.0,0.02440453]
[1770481463406,0.44897663,2058.9,2057.0,0.02440453]
[1770481463603,0.44897663,2058.8,2057.0,0.02440453]
[1770481463940,5.128,2059.9,2058.1,0.5]
[1770481464109,0.02440453,2059.4,2058.1,0.5]
[1770481464440,0.44893003,2059.3,2058.1,0.5]
[1770481464729,0.02440453,2059.3,2058.1,0.5]
[1770481464929,0.449174,2059.2,2058.1,0.5]
[1770481465229,0.02440453,2059.8,2058.1,0.5]
[1770481465749,0.44956213,2059.7,2058.1,0.5]
[1770481466037,0.44956213,2059.6,2058.1,0.5]
[1770481466331,0.44956213,2059.5,2058.1,0.5]
[1770481466533,0.44956213,2059.4,2058.1,0.5]
[1770481466737,0.30140212,2060.3,2058.1,0.5]
[1770481467033,0.02440453,2060.0,2058.1,0.5]
[1770481467225,0.44984428,2059.9,2058.1,0.5]
[1770481467533,0.44984428,2059.8,2058.2,0.25797483]
[1770481467713,0.27699759,2060.3,2058.2,0.25797483]
[1770481467714,0.44984428,2059.7,2058.2,0.25797483]
[1770481467910,0.44984428,2059.6,2058.2,0.25797483]
[1770481468111,0.27699759,2060.3,2058.2,0.25797483]
[1770481468312,0.45035243,2060.2,2058.2,0.25797483]
[1770481468635,0.45035243,2060.1,2058.5,0.02440453]
[1770481468930,0.34973259,2060.2,2058.2,0.25797483]
[1770481468931,0.45035243,2060.0,2058.2,0.25797483]
[1770481469137,0.45035243,2059.9,2058.2,0.25797483]
[1770481469342,0.45035243,2059.8,2058.2,0.25797483]
[1770481469516,0.45035243,2059.7,2058.2,0.25797483]
[1770481469709,0.45035243,2059.6,2058.2,0.25797483]
[1770481469910,0.45035243,2059.5,2058.2,0.25797483]
[1770481470239,0.34973259,2060.2,2058.2,0.02440453]
[1770481470411,0.34973259,2060.2,2058.1,0.5]
[1770481470412,0.45062028,2060.1,2058.1,0.5]
[1770481470715,0.45062028,2060.0,2058.2,0.02440453]
[1770481470911,0.45062028,2059.9,2058.2,0.02440453]
[1770481471111,0.45062028,2059.8,2058.1,0.5]
[1770481471311,0.45062028,2059.7,2058.1,0.5]
[1770481471527,0.45062028,2059.6,2058.1,0.52440453]
[1770481471723,0.45062028,2059.5,2058.2,0.2335703]
[1770481471934,0.34973259,2060.2,2058.7,0.02440453]
[1770481472252,0.34973259,2060.2,2058.4,0.02440453]
[1770481472253,0.45078915,2060.1,2058.4,0.02440453]
[1770481472437,0.34973259,2060.2,2058.4,0.02440453]
[1770481472438,0.45078915,2060.0,2058.8,0.02440453]
[1770481472611,0.45078915,2060.0,2058.4,0.02440453]
[1770481472612,0.45078915,2059.9,2058.4,0.02440453]
[1770481472929,0.45078915,2059.8,2058.1,0.5]
[1770481473130,0.45078915,2059.7,2058.1,0.5]
[1770481473354,0.45078915,2059.6,2058.1,0.5]
[1770481473524,0.45078915,2059.5,2058.1,0.5]
[1770481473719,0.45078915,2059.4,2058.1,0.5]
[1770481473926,0.45078915,2059.3,2058.1,0.5]
[1770481474153,0.45078915,2059.2,2058.1,0.5]
[1770481474311,0.45078915,2059.1,2058.1,0.5]
[1770481474511,0.45078915,2059.0,2058.1,0.5]
[1770481474737,0.45078915,2058.9,2058.1,0.5]
[1770481474944,0.02640453,2060.0,2058.1,0.5]
[1770481475115,0.45166652,2059.9,2058.1,0.5]
[1770481475316,0.02440453,2059.7,2058.1,0.5]
[1770481475517,0.45166652,2059.6,2058.1,0.5]
[1770481475717,0.02440453,2059.4,2058.1,0.5]
[1770481475916,0.45166652,2059.3,2058.1,0.5]
[1770481476117,0.45166652,2059.2,2058.1,0.5]
[1770481476318,0.45166652,2059.1,2058.1,0.5]
[1770481476520,0.45166652,2059.0,2058.1,0.5]
[1770481476720,0.45166652,2058.9,2058.1,0.5]
[1770481477046,0.45166652,2058.8,2058.1,0.5]
[1770481477245,0.45166652,2058.7,2058.1,0.5]
[1770481477543,0.02640453,2060.0,2058.1,0.5]
[1770481477719,0.45168557,2059.9,2058.1,0.5]
[1770481478038,0.45168557,2059.8,2058.2,0.02440453]
[1770481478244,0.45168557,2059.7,2058.5,0.02440453]
[1770481478427,0.45168557,2059.6,2058.5,0.02440453]
[1770481478611,0.45168557,2059.5,2058.5,0.02440453]
[1770481478811,0.45168557,2059.4,2058.5,0.02440453]
[1770481479144,0.002,2060.0,2058.5,0.02440453]
[1770481479442,0.45179335,2059.9,2058.4,0.02440453]
[1770481479644,0.45179335,2059.8,2058.4,0.02440453]
[1770481479823,0.45179335,2059.7,2058.4,0.02440453]
[1770481480020,0.45179335,2059.6,2058.3,0.02440453]
[1770481480345,0.45179335,2059.5,2058.3,0.02440453]
[1770481480540,0.002,2060.0,2058.3,0.02440453]
[1770481480736,0.45190249,2059.9,2058.3,0.02440453]
[1770481481038,0.45190249,2059.8,2058.3,0.02440453]
[1770481481237,0.45190249,2059.7,2058.3,0.02440453]
[1770481481437,0.45190249,2059.6,2058.3,0.02440453]
[1770481481639,0.45190249,2059.5,2058.1,0.5]
[1770481481819,0.45190249,2059.4,2058.1,0.5]
[1770481482021,0.45190249,2059.3,2058.1,0.5]
[1770481482344,0.45190249,2059.2,2058.1,0.5]
[1770481482552,0.45190249,2059.1,2058.1,0.5]
[1770481482854,0.45190249,2059.0,2058.1,0.5]
[1770481483022,0.002,2060.0,2058.2,0.02440453]
[1770481483224,0.02440453,2059.8,2058.1,0.5]
[1770481483452,0.45268131,2059.7,2058.1,0.5]
[1770481483752,0.45268131,2059.6,2058.1,0.5]
[1770481483949,0.45268131,2059.5,2058.1,0.5]
[1770481484149,0.002,2060.0,2058.1,0.5]
[1770481484150,0.45268131,2059.4,2058.4,0.02440453]
[1770481484457,0.45268131,2059.3,2058.4,0.02440453]
[1770481484628,0.45268131,2059.2,2058.4,0.02440453]
[1770481484828,0.45268131,2059.1,2058.2,0.02440453]
[1770481485132,0.002,2059.6,2058.5,0.02440453]
[1770481485343,0.45275581,2059.5,2058.5,0.02440453]
[1770481485547,0.002,2059.6,2058.8,0.02440453]
[1770481485724,0.45269349,2059.5,2058.8,0.02440453]
[1770481486050,0.45272339,2059.4,2058.5,0.02440453]
[1770481486234,0.45269961,2059.3,2058.5,0.02440453]
[1770481486438,0.002,2059.6,2058.5,0.02440453]
[1770481486439,0.452721,2059.2,2058.5,0.02440453]
[1770481486632,0.002,2059.6,2058.5,0.02440453]
[1770481486856,0.45272195,2059.5,2058.1,0.5]
[1770481487023,0.45272195,2059.4,2058.1,0.5]
[1770481487228,0.45272195,2059.3,2058.1,0.5]
[1770481487423,0.45272195,2059.2,2058.1,0.5]
[1770481487634,0.45272195,2059.1,2058.0,0.001]
[1770481487839,0.45272195,2059.0,2058.0,0.001]
[1770481488158,0.45272195,2058.9,2058.0,0.001]
[1770481488327,0.002,2059.6,2058.0,0.001]
[1770481488643,0.45303234,2059.5,2058.0,0.001]
[1770481488844,0.45303234,2059.4,2058.0,0.001]
[1770481489022,0.45303234,2059.3,2058.0,0.001]
[1770481489223,0.45303234,2059.2,2058.0,0.001]
[1770481489449,0.45303234,2059.1,2058.0,0.001]
[1770481489643,0.45303234,2059.0,2058.0,0.001]
[1770481489850,0.2335703,2059.5,2058.0,0.001]
[1770481489851,0.45303234,2058.9,2058.0,0.001]
[1770481490159,0.02440453,2059.2,2057.8,0.001]
[1770481490160,0.45303234,2058.8,2057.8,0.001]
[1770481490359,0.45303234,2058.7,2057.1,0.001]
[1770481490668,0.45303234,2058.6,2057.2,0.02440453]
[1770481490830,0.45303234,2058.5,2057.5,0.02440453]
[1770481491026,0.02440453,2059.5,2057.5,0.02440453]
[1770481491027,0.45303234,2058.4,2057.5,0.02440453]
[1770481491258,0.002,2059.6,2057.5,0.02440453]
[1770481491456,0.002,2059.6,2057.8,0.02440453]
[1770481491654,0.002,2059.6,2057.5,0.02440453]
[1770481491839,0.02440453,2059.5,2057.5,0.02440453]
[1770481492467,0.02440453,2059.5,2057.8,0.02440453]
[1770481493227,0.002,2059.6,2057.5,0.02440453]
[1770481493956,0.02440453,2059.4,2057.2,0.02440453]
[1770481494159,0.02440453,2059.4,2057.1,0.02540453]
[1770481494325,0.25797483,2059.4,2057.1,0.02540453]
[1770481494655,5.128,2059.3,2057.1,0.001]
[1770481494826,5.128,2059.3,2057.2,0.02440453]
[1770481495029,0.02440453,2059.1,2057.2,0.02440453]
[1770481495229,0.02440453,2059.1,2057.1,0.001]
[1770481495450,0.02440453,2059.1,2057.1,0.02540453]
[1770481495657,5.128,2059.3,2057.4,0.02440453]
[1770481495954,5.128,2059.1,2057.4,0.02440453]
[1770481496252,5.128,2059.1,2057.2,0.2335703]
[1770481496558,5.128,2059.1,2057.1,0.02540453]
[1770481496559,5.128,2059.1,2057.1,0.001]
[1770481496956,5.128,2059.1,2057.2,0.02440453]
[1770481497260,5.128,2059.1,2057.3,0.001]
[1770481497555,0.002,2058.9,2057.5,0.02440453]
[1770481497728,0.002,2058.9,2057.8,0.02440453]
[1770481500180,0.002,2058.9,2057.5,0.02440453]
[1770481500345,0.002,2058.9,2057.3,0.001]
[1770481501686,0.02440453,2058.4,2057.3,0.001]
[1770481501971,5.13,2058.9,2056.6,0.02440453]
[1770481502135,5.15240453,2058.7,2056.7,0.02440453]
[1770481502332,5.15240453,2058.7,2056.4,0.02440453]
[1770481502753,5.128,2058.7,2056.8,0.02440453]
[1770481503062,5.128,2058.5,2056.8,0.02440453]
[1770481503244,0.45304426,2058.4,2057.1,0.02440453]
[1770481503565,0.45304426,2058.3,2056.8,0.02440453]
[1770481503774,0.45304426,2058.2,2056.8,0.02440453]
[1770481503972,5.128,2058.5,2057.1,0.02440453]
[1770481503973,0.45304426,2058.1,2057.1,0.02440453]
[1770481504178,0.45304426,2058.0,2057.1,0.02440453]
[1770481504338,0.45304426,2057.9,2056.8,0.02440453]
[1770481504539,5.128,2058.5,2056.5,0.02440453]
[1770481504540,0.45304426,2057.8,2056.5,0.02440453]
[1770481504845,0.45304426,2057.7,2056.5,0.02440453]
[1770481505059,0.45276783,2057.6,2056.1,0.2335703]
[1770481505260,0.45272299,2057.5,2056.4,0.02440453]
[1770481505574,5.128,2058.3,2056.4,0.02440453]
[1770481505740,0.45245296,2058.2,2056.7,0.02440453]
[1770481505941,0.45245296,2058.1,2057.0,0.02440453]
[1770481506143,0.45245296,2058.0,2057.0,0.02440453]
[1770481506439,0.45245296,2057.9,2057.0,0.02440453]
[1770481506643,0.45245296,2057.8,2057.0,0.02440453]
[1770481506838,0.5128,2058.1,2057.0,0.02440453]
[1770481507039,0.45218767,2058.0,2057.0,0.02440453]
[1770481507244,0.45218767,2057.9,2057.0,0.02440453]
[1770481507453,0.45218767,2057.8,2056.5,0.02440453]
[1770481507667,0.45218767,2057.7,2056.6,0.02440453]
[1770481507870,0.45218767,2057.6,2056.6,0.02440453]
[1770481508044,5.6408,2058.1,2056.6,0.02440453]
[1770481508244,1.01615719,2058.0,2056.6,0.02440453]
[1770481508471,0.45207719,2057.9,2056.6,0.02440453]
[1770481508655,0.45207719,2057.8,2056.6,0.02440453]
[1770481508848,0.45207719,2057.7,2056.7,0.02440453]
[1770481509167,0.45207719,2057.6,2056.7,0.02440453]
[1770481509473,5.748488,2057.9,2056.3,0.02440453]
[1770481509669,6.79480943,2057.8,2056.0,0.001]
[1770481509966,5.128,2057.6,2056.0,0.001]
[1770481510167,5.128,2057.4,2056.9,0.001]
[1770481510369,0.45191975,2057.3,2056.0,0.001]
[1770481510542,0.45191975,2057.2,2056.1,0.02440453]
[1770481510741,0.45191975,2057.2,2056.0,0.001]
[1770481510742,0.45191975,2057.1,2056.6,0.001]
[1770481510942,0.45191975,2057.0,2056.6,0.001]
[1770481511153,0.55799197,2057.5,2056.6,0.001]
[1770481511355,0.45152074,2057.4,2056.6,0.001]
[1770481511558,0.002,2058.0,2056.6,0.001]
[1770481511769,0.45152886,2057.9,2056.6,0.001]
[1770481512067,0.45152886,2057.8,2056.6,0.001]
[1770481512267,0.45152886,2057.7,2056.6,0.001]
[1770481512568,0.002,2058.0,2056.7,0.02440453]
[1770481512769,0.45135679,2057.9,2056.6,0.001]
[1770481512949,0.45135679,2057.8,2056.6,0.001]
[1770481513156,0.45135679,2057.7,2056.6,0.001]
[1770481513351,0.002,2058.0,2056.6,0.001]
[1770481513352,0.45135679,2057.6,2056.6,0.001]
[1770481513553,0.002,2058.0,2056.6,0.001]
[1770481513554,0.45135679,2057.5,2056.6,0.001]
[1770481513763,6.79448267,2057.4,2056.6,0.001]
[1770481513962,1.16547564,2057.3,2056.6,0.001]
[1770481514165,0.45148983,2057.2,2056.6,0.001]
[1770481514468,0.45148983,2057.1,2056.6,0.001]
[1770481514673,1.21488968,2057.8,2056.6,0.001]
[1770481514878,1.05881557,2057.7,2056.6,0.001]
[1770481515061,0.45137623,2057.6,2056.6,0.001]
[1770481515266,0.45137623,2057.5,2056.6,0.001]
[1770481515468,0.45137623,2057.4,2056.6,0.001]
[1770481515667,0.45137623,2057.3,2056.6,0.001]
[1770481515867,0.45137623,2057.2,2056.6,0.001]
[1770481516176,6.34300777,2057.6,2056.6,0.001]
[1770481516480,0.45166616,2057.5,2056.6,0.001]
[1770481516677,0.45166616,2057.4,2056.6,0.001]
[1770481516971,0.45166616,2057.3,2056.6,0.001]
[1770481517178,0.45166616,2057.2,2056.0,0.001]
[1770481517374,0.45166616,2057.1,2056.0,0.001]
[1770481517576,0.45166616,2057.0,2056.0,0.001]
[1770481517779,0.45166616,2056.9,2056.0,0.001]
[1770481517975,0.45166616,2056.8,2056.0,0.001]
[1770481518477,6.97411959,2057.3,2056.0,0.001]
[1770481518657,5.128,2057.1,2056.0,0.001]
[1770481518980,0.45171409,2057.0,2056.0,0.001]
[1770481519151,0.45171409,2056.9,2056.1,0.02440453]
[1770481519351,0.32648953,2057.4,2056.1,0.02440453]
[1770481519571,0.45179422,2057.3,2056.4,0.02440453]
[1770481519767,0.45179422,2057.2,2056.5,0.02440453]
[1770481519952,0.32648953,2057.4,2056.1,0.02440453]
[1770481520148,0.45172248,2057.3,2056.4,0.02440453]
[1770481520353,0.45172248,2057.2,2056.4,0.02440453]
[1770481520549,0.32648953,2057.4,2056.4,0.02440453]
[1770481520795,0.32648953,2057.4,2057.0,0.02440453]
[1770481521164,0.002,2058.0,2057.0,0.02440453]
[1770481521572,0.002,2058.0,2057.3,0.02440453]
[1770481521772,0.32875877,2058.9,2057.6,0.02440453]
[1770481521977,0.32875877,2058.9,2057.9,0.02440453]
[1770481522857,0.6552483,2058.9,2058.2,0.02440453]
[1770481523354,0.99480111,2058.9,2058.3,0.02440453]
[1770481523553,0.6552483,2058.9,2058.3,0.02440453]
[1770481523791,0.32875877,2058.9,2058.6,0.02440453]
[1770481524083,0.32875877,2058.9,2058.2,0.02440453]
[1770481524452,0.002,2058.9,2058.5,0.02440453]
[1770481524893,0.002,2058.9,2058.3,0.02440453]
[1770481525192,0.32848953,2058.9,2058.3,0.02440453]
[1770481525490,0.32848953,2058.9,2058.0,0.02440453]
[1770481526198,0.32848953,2058.9,2057.7,0.02440453]
[1770481526383,0.32848953,2058.9,2058.1,0.02440453]
[1770481526575,0.32848953,2058.9,2057.9,0.02440453]
[1770481526775,0.32848953,2058.9,2058.2,0.02440453]
[1770481527294,0.32848953,2058.9,2057.0,5.86281175]
[1770481527295,0.002,2058.9,2057.2,0.02440453]
[1770481527501,0.32648953,2058.8,2057.8,0.02440453]
[1770481528062,0.32648953,2058.8,2058.1,0.02440453]
[1770481528314,0.32648953,2058.8,2058.4,0.02440453]
[1770481528476,0.002,2058.9,2058.4,0.02440453]
[1770481528665,0.32848953,2058.9,2058.4,0.02440453]
[1770481528990,0.32848953,2058.9,2058.5,0.02440453]
[1770481529292,0.32848953,2058.9,2057.8,0.02440453]
[1770481529293,0.002,2058.9,2058.6,0.02440453]
[1770481529663,0.32648953,2058.8,2058.2,0.02440453]
[1770481529867,0.32648953,2058.8,2058.5,0.02440453]
[1770481530061,0.002,2058.9,2058.5,0.02440453]
[1770481530391,0.32848953,2058.9,2058.2,0.02440453]
[1770481530690,0.32848953,2058.9,2058.3,0.02440453]
[1770481531094,0.32848953,2058.9,2057.9,0.02440453]
[1770481531391,0.32848953,2058.9,2057.7,0.2335703]
[1770481531690,0.32848953,2058.9,2058.2,1.23900636]
[1770481531691,0.002,2058.9,2058.2,1.23900636]
[1770481531898,0.002,2058.9,2058.0,0.2335703]
[1770481532096,0.32848953,2058.9,2058.3,0.02440453]
[1770481532304,0.32848953,2058.9,2057.9,0.02440453]
[1770481533400,0.32848953,2058.9,2058.2,0.02440453]
[1770481534104,0.32848953,2058.9,2058.3,0.02440453]
[1770481534808,0.002,2059.6,2058.6,0.02440453]
[1770481534981,0.002,2059.6,2058.4,0.02440453]
[1770481534982,0.002,2058.7,2058.4,0.02440453]
[1770481535184,0.002,2059.6,2058.4,0.02440453]
[1770481535709,0.002,2059.6,2058.5,0.02440453]
[1770481536206,0.002,2059.6,2058.6,0.02440453]
[1770481536572,0.6,2059.4,2058.6,0.02440453]
[1770481537690,0.6,2059.4,2058.0,0.02440453]
[1770481537885,5.128,2059.3,2057.5,0.02440453]
[1770481538091,0.6,2059.4,2057.9,0.02440453]
[1770481538584,1.21400475,2059.3,2058.0,0.02440453]
[1770481538984,0.6,2059.4,2058.0,0.02440453]
[1770481539393,0.6,2059.4,2058.3,0.02440453]
[1770481539592,0.6,2059.4,2057.9,0.02440453]
[1770481539903,5.728,2059.4,2058.3,0.02440453]
[1770481540410,0.5728,2059.3,2058.3,0.02440453]
[1770481541002,0.5728,2059.3,2057.9,0.02440453]
[1770481541197,0.5728,2059.3,2058.2,0.02440453]
[1770481541379,5.7008,2059.3,2057.9,0.02440453]
[1770481541584,5.75808,2059.2,2057.9,0.02440453]